bitfinex/quotes_BTCUSD_20240818
["timestamp","ask_amount","ask_price","bid_price","bid_amount"]
[1723961953404,0.351775,59697.0,59696.0,0.05957311]
[1723961953593,0.351775,59697.0,59696.0,0.1096348]
[1723961953990,0.351775,59697.0,59696.0,0.05957311]
[1723961954161,0.351775,59697.0,59696.0,0.1096348]
[1723961954584,0.351775,59697.0,59696.0,0.05957311]
[1723961954779,0.351775,59697.0,59696.0,0.1096348]
[1723961955390,0.351775,59697.0,59696.0,0.10963442]
[1723961956104,0.351775,59697.0,59696.0,0.10963535]
[1723961956523,0.351775,59697.0,59696.0,0.10963495]
[1723961956932,0.351775,59697.0,59696.0,0.10963472]
[1723961957343,0.117255,59699.0,59696.0,0.10963472]
[1723961957548,0.234503,59701.0,59698.0,0.05005273]
[1723961957813,0.117252,59700.0,59699.0,0.05566553]
[1723961958591,0.351757,59700.0,59699.0,0.05566553]
[1723961960204,0.353757,59700.0,59699.0,0.05566553]
[1723961960531,0.351757,59700.0,59699.0,0.05666553]
[1723961961195,0.351757,59700.0,59699.0,0.05866553]
[1723961962956,0.117252,59700.0,59699.0,0.05866553]
[1723961964937,0.351757,59700.0,59699.0,0.05866553]
[1723961965137,0.351757,59700.0,59699.0,0.05865523]
[1723961965970,0.351757,59700.0,59699.0,0.05865578]
[1723961967594,0.351757,59700.0,59699.0,0.05864352]
[1723961969475,0.351757,59700.0,59699.0,0.003]
[1723961969677,0.351757,59700.0,59699.0,0.05864228]
[1723961970267,0.117252,59700.0,59699.0,0.05864228]
[1723961970710,0.117252,59700.0,59699.0,0.05864323]
[1723961970919,0.117251,59701.0,59699.0,0.05864323]
[1723961971071,0.117252,59700.0,59699.0,0.003]
[1723961971417,0.117252,59700.0,59699.0,0.05864293]
[1723961972174,0.000825,59702.0,59699.0,0.05864245]
[1723961972382,0.000825,59702.0,59701.0,0.54086512]
[1723961972589,0.000825,59702.0,59701.0,0.41605356]
[1723961972874,0.000825,59702.0,59701.0,0.98352268]
[1723961973084,0.000825,59702.0,59701.0,0.74902168]
[1723961973281,0.000825,59702.0,59701.0,0.98352268]
[1723961973485,0.000825,59702.0,59701.0,0.61186163]
[1723961973691,0.000825,59702.0,59701.0,0.18471063]
[1723961973894,0.00417619,59702.0,59701.0,0.05565032]
[1723961974326,0.00417619,59702.0,59701.0,0.17290032]
[1723961974547,0.00417619,59702.0,59701.0,0.06165032]
[1723961975234,0.00417619,59702.0,59701.0,0.06665032]
[1723961975432,0.000825,59702.0,59701.0,0.06665032]
[1723961975734,0.000825,59702.0,59701.0,0.06665215]
[1723961976439,0.118074,59702.0,59701.0,0.06665215]
[1723961977197,0.352572,59702.0,59701.0,0.06665215]
[1723961978009,0.413272,59702.0,59701.0,0.06665215]
[1723961979139,0.413272,59702.0,59701.0,0.011]
[1723961979359,0.413272,59702.0,59701.0,0.06665612]
[1723961980663,0.413272,59702.0,59701.0,0.03179064]
[1723961980922,0.413272,59702.0,59701.0,0.06665447]
[1723961982308,0.413272,59702.0,59701.0,0.04586527]
[1723961982529,0.64777,59702.0,59701.0,0.0666558]
[1723961982981,0.413272,59702.0,59701.0,0.06665967]
[1723961983510,0.413272,59702.0,59701.0,0.011]
[1723961983722,0.413272,59702.0,59701.0,0.06666238]
[1723961984390,0.413272,59702.0,59701.0,0.0666606]
[1723961985614,0.413272,59702.0,59701.0,0.06665883]
[1723961986020,0.413272,59702.0,59701.0,0.066662]
[1723961986207,0.413272,59702.0,59701.0,0.011]
[1723961986426,0.413272,59702.0,59701.0,0.06666123]
[1723961987029,0.413272,59702.0,59701.0,0.06665944]
[1723961987847,0.413272,59702.0,59701.0,0.06665937]
[1723961990052,0.64777,59702.0,59701.0,0.06665937]
[1723961991481,0.64777,59702.0,59701.0,0.011]
[1723961991683,0.64777,59702.0,59701.0,0.06665955]
[1723961992499,0.64777,59702.0,59701.0,0.011]
[1723961992860,0.64777,59702.0,59701.0,0.06665765]
[1723961994745,0.64777,59702.0,59701.0,0.06665315]
[1723961996072,0.64777,59702.0,59701.0,0.011]
[1723961996287,0.64777,59702.0,59701.0,0.06666092]
[1723961996513,0.72627,59702.0,59701.0,0.06666092]
[1723961996624,0.72627,59702.0,59701.0,0.03179243]
[1723961996838,0.960768,59702.0,59701.0,0.03179243]
[1723961997038,0.98929151,59702.0,59701.0,0.03179243]
[1723961997305,0.98929151,59702.0,59701.0,0.011]
[1723961997504,0.960768,59702.0,59701.0,0.03179671]
[1723961998099,0.989291,59702.0,59701.0,0.03179671]
[1723961998313,0.960768,59702.0,59701.0,0.03179671]
[1723961998525,0.960768,59702.0,59701.0,0.011]
[1723961998710,0.960768,59702.0,59701.0,0.03179623]
[1723961999120,1.16084597,59702.0,59701.0,0.03179623]
[1723961999335,1.13232254,59702.0,59701.0,0.03179623]
[1723961999621,1.13232254,59702.0,59701.0,0.03179667]
[1723962000119,1.13232254,59702.0,59701.0,0.03179674]
[1723962000509,1.16084666,59702.0,59701.0,0.03179674]
[1723962000835,1.13232254,59702.0,59701.0,0.03179674]
[1723962001609,1.16084774,59702.0,59701.0,0.03179674]
[1723962002240,1.16084774,59702.0,59701.0,0.03270424]
[1723962002755,1.16084774,59702.0,59701.0,0.0069075]
[1723962003322,1.16084774,59702.0,59701.0,0.0009075]
[1723962003521,1.49628031,59702.0,59701.0,0.0009075]
[1723962003726,1.26278231,59702.0,59701.0,0.0009075]
[1723962004153,1.49728031,59702.0,59701.0,0.0009075]
[1723962004327,1.65723214,59702.0,59701.0,0.0009075]
[1723962005252,1.26278231,59702.0,59701.0,0.0009075]
[1723962006526,1.49728031,59702.0,59701.0,0.0009075]
[1723962006934,1.26278231,59702.0,59701.0,0.0009075]
[1723962007556,1.23425711,59702.0,59701.0,0.02170768]
[1723962007749,1.23425711,59702.0,59701.0,0.0009075]
[1723962008962,1.31625711,59702.0,59701.0,0.0009075]
[1723962010110,1.09412254,59702.0,59701.0,0.0009075]
[1723962010329,1.09412254,59702.0,59701.0,0.02170599]
[1723962011357,1.09412254,59702.0,59701.0,0.02170604]
[1723962015629,1.09412254,59702.0,59701.0,0.0009075]
[1723962015838,0.99412254,59702.0,59701.0,0.02170615]
[1723962020458,0.99412254,59702.0,59701.0,0.02170556]
[1723962024175,0.99412254,59702.0,59701.0,0.02170531]
[1723962024433,0.99412254,59702.0,59701.0,0.0425031]
[1723962025433,0.99412254,59702.0,59701.0,0.04250278]
[1723962026146,0.99412254,59702.0,59701.0,0.12400278]
[1723962026940,0.99412254,59702.0,59701.0,0.12400318]
[1723962027565,0.99412254,59702.0,59701.0,0.10320537]
[1723962028370,0.99412254,59702.0,59701.0,0.0824075]
[1723962028584,0.99412254,59702.0,59701.0,0.10320832]
[1723962028585,1.03670474,59702.0,59701.0,0.10320832]
[1723962028780,1.03670474,59702.0,59701.0,0.10320843]
[1723962029210,1.03670474,59702.0,59701.0,0.10320891]
[1723962030155,1.03670474,59702.0,59701.0,0.16360891]
[1723962030352,0.99412254,59702.0,59701.0,0.16360891]
[1723962030758,0.99412254,59702.0,59701.0,0.19848944]
[1723962031390,0.353572,59702.0,59701.0,0.19848944]
[1723962031599,0.000825,59702.0,59701.0,0.63224044]
[1723962031811,0.002825,59702.0,59701.0,1.45110613]
[1723962032214,0.002825,59702.0,59701.0,1.39262796]
[1723962032415,0.002825,59702.0,59701.0,1.45108281]
[1723962032823,0.000825,59702.0,59701.0,1.45108281]
[1723962033062,0.000825,59702.0,59701.0,1.40698986]
[1723962033250,0.000825,59702.0,59701.0,2.00145338]
[1723962033484,0.000825,59702.0,59701.0,2.06807896]
[1723962033687,0.000825,59702.0,59701.0,1.97713385]
[1723962033870,0.000825,59702.0,59701.0,2.65654164]
[1723962034085,1e-08,59702.0,59701.0,2.1362305]
[1723962034426,1e-08,59702.0,59701.0,1.97708772]
[1723962034653,1e-08,59702.0,59701.0,1.99108772]
[1723962035034,1e-08,59702.0,59701.0,1.98108772]
[1723962035471,1e-08,59702.0,59701.0,1.98590523]
[1723962036209,1e-08,59702.0,59701.0,1.99508822]
[1723962036414,1e-08,59702.0,59701.0,1.96092514]
[1723962036621,1e-08,59702.0,59701.0,1.98587623]
[1723962036895,1e-08,59702.0,59701.0,1.87617272]
[1723962037047,1e-08,59702.0,59701.0,1.98587258]
[1723962037448,1e-08,59702.0,59701.0,1.88608192]
[1723962037797,0.0078499,59703.0,59702.0,0.963143]
[1723962037968,0.0078499,59703.0,59702.0,1.61600299]
[1723962038129,0.0078499,59703.0,59702.0,1.74080969]
[1723962039002,0.0078499,59703.0,59702.0,1.64509759]
[1723962039209,0.0078499,59703.0,59702.0,1.64399624]
[1723962039752,0.0078499,59703.0,59702.0,1.64399596]
[1723962040151,0.0078499,59703.0,59702.0,1.74379817]
[1723962040571,0.0078499,59703.0,59702.0,1.74479817]
[1723962040776,0.0078499,59703.0,59702.0,1.74379817]
[1723962041155,0.0078499,59703.0,59702.0,1.97929617]
[1723962041365,0.0078499,59703.0,59702.0,1.96529617]
[1723962041543,0.0078499,59703.0,59702.0,1.88767548]
[1723962041720,0.0078499,59703.0,59702.0,1.81868942]
[1723962042065,0.0078499,59703.0,59702.0,1.88942442]
[1723962042408,0.0078499,59703.0,59702.0,1.88942409]
[1723962042540,0.0078499,59703.0,59702.0,2.01409702]
[1723962042740,0.0078499,59703.0,59702.0,2.07114993]
[1723962043138,0.0078499,59703.0,59702.0,2.07214993]
[1723962043350,0.0078499,59703.0,59702.0,2.08614993]
[1723962043573,0.0078499,59703.0,59702.0,1.96046007]
[1723962044105,0.0078499,59703.0,59702.0,2.06017131]
[1723962044736,0.0078499,59703.0,59702.0,1.97817131]
[1723962045920,0.00825,59712.0,59702.0,0.89524756]
[1723962046144,0.00825,59712.0,59711.0,1.049717]
[1723962046320,0.00825,59712.0,59711.0,1.37111803]
[1723962046523,0.00825,59712.0,59711.0,1.5269611]
[1723962046727,0.00825,59712.0,59711.0,1.54773887]
[1723962046930,0.00825,59712.0,59711.0,1.91926991]
[1723962047133,0.00825,59712.0,59711.0,2.1700461]
[1723962047572,0.00825,59712.0,59711.0,2.1116342]
[1723962047802,0.00825,59712.0,59711.0,2.1146342]
[1723962047996,0.00825,59712.0,59711.0,2.05391159]
[1723962048205,0.00825,59712.0,59711.0,2.11458486]
[1723962048408,0.00825,59712.0,59711.0,2.12858486]
[1723962048645,0.00825,59712.0,59711.0,2.15158486]
[1723962049224,0.0002,59719.0,59718.0,0.820522]
[1723962049439,0.0002,59719.0,59718.0,1.27679782]
[1723962050328,0.0002,59719.0,59718.0,1.22117654]
[1723962050514,0.0002,59719.0,59718.0,1.28978424]
[1723962051677,0.0002,59719.0,59718.0,1.30378424]
[1723962052439,0.0002,59719.0,59718.0,1.22178424]
[1723962052622,0.0002,59719.0,59718.0,1.30378424]
[1723962054054,0.0002,59719.0,59718.0,0.58136252]
[1723962054255,0.0002,59719.0,59718.0,0.56322577]
[1723962054458,0.0002,59719.0,59718.0,0.79766077]
[1723962055398,0.0002,59719.0,59718.0,0.56322577]
[1723962055793,0.0002,59719.0,59718.0,0.59806761]
[1723962056579,0.0002,59719.0,59718.0,0.83250261]
[1723962057151,0.0002,59719.0,59718.0,0.75070261]
[1723962057280,0.0643,59719.0,59718.0,0.51626761]
[1723962057459,0.1396,59719.0,59718.0,0.51626761]
[1723962058294,0.256815,59719.0,59718.0,0.08261561]
[1723962058495,0.256815,59719.0,59718.0,0.04778274]
[1723962058935,0.256815,59719.0,59718.0,0.04778434]
[1723962059142,0.492071,59719.0,59718.0,0.04778434]
[1723962059344,0.492071,59719.0,59718.0,0.02078434]
[1723962060227,0.726502,59719.0,59718.0,0.02078434]
[1723962060629,0.727502,59719.0,59718.0,0.02078434]
[1723962060828,0.726502,59719.0,59718.0,0.02078434]
[1723962061030,0.726502,59719.0,59706.0,0.0752]
[1723962061031,0.234452,59714.0,59706.0,0.0752]
[1723962061245,0.117232,59711.0,59707.0,0.22693573]
[1723962061436,0.14275119,59713.0,59708.0,0.22693357]
[1723962061640,0.14275119,59713.0,59709.0,0.17288232]
[1723962061641,0.18467919,59713.0,59709.0,0.17288232]
[1723962061842,0.002025,59719.0,59709.0,0.17288232]
[1723962061843,0.002025,59719.0,59712.0,0.082]
[1723962062055,0.002025,59719.0,59713.0,0.05564732]
[1723962062056,0.117223,59715.0,59713.0,0.05564732]
[1723962062252,0.117223,59715.0,59714.0,0.05564732]
[1723962063069,0.234439,59717.0,59714.0,0.05564732]
[1723962063291,0.117221,59716.0,59715.0,0.08113485]
[1723962063836,0.351664,59716.0,59715.0,0.08113485]
[1723962064019,0.351664,59716.0,59715.0,0.05564732]
[1723962064779,0.351664,59716.0,59715.0,0.05864732]
[1723962065422,0.351664,59716.0,59715.0,0.06064732]
[1723962065624,0.117221,59716.0,59715.0,0.005]
[1723962065877,0.0641,59718.0,59715.0,0.06063783]
[1723962066023,0.351658,59717.0,59716.0,0.05563783]
[1723962066699,0.181317,59718.0,59716.0,0.08162441]
[1723962066874,0.181317,59718.0,59717.0,0.05563783]
[1723962067121,0.117219,59717.0,59716.0,0.02598658]
[1723962067289,0.117219,59717.0,59716.0,0.08162025]
[1723962067501,0.117219,59717.0,59716.0,0.05563367]
[1723962067730,0.298537,59718.0,59713.0,0.117227]
[1723962067920,0.117219,59717.0,59714.0,0.05563553]
[1723962068120,0.117219,59717.0,59715.0,0.05563553]
[1723962068333,0.117219,59717.0,59716.0,0.05563553]
[1723962068938,0.117219,59717.0,59716.0,0.05863553]
[1723962069347,0.001025,59719.0,59716.0,0.12513553]
[1723962069548,0.001025,59719.0,59718.0,0.082]
[1723962069688,0.001025,59719.0,59718.0,0.13763553]
[1723962069888,0.001025,59719.0,59718.0,0.082]
[1723962070090,0.001025,59719.0,59718.0,0.13762932]
[1723962070295,0.001025,59719.0,59718.0,0.082]
[1723962070495,0.001025,59719.0,59718.0,0.13762933]
[1723962071015,0.001025,59719.0,59718.0,0.17206808]
[1723962071212,0.001025,59719.0,59718.0,0.28928508]
[1723962071413,0.001025,59719.0,59718.0,0.17106808]
[1723962071625,0.001025,59719.0,59718.0,0.29328508]
[1723962072050,0.001025,59719.0,59718.0,0.26384633]
[1723962072253,0.001025,59719.0,59718.0,0.41628133]
[1723962072454,0.001025,59719.0,59718.0,0.18184633]
[1723962072628,0.001025,59719.0,59718.0,0.41628133]
[1723962074200,0.001025,59719.0,59718.0,0.49828133]
[1723962074659,0.149025,59719.0,59718.0,0.18184633]
[1723962075188,0.066825,59719.0,59718.0,0.41628133]
[1723962075387,0.001025,59719.0,59718.0,0.41628133]
[1723962076524,0.001025,59719.0,59718.0,0.47031083]
[1723962076723,0.001025,59719.0,59718.0,0.41628133]
[1723962077424,0.001025,59719.0,59718.0,0.41627694]
[1723962077648,0.001025,59719.0,59718.0,0.47030626]
[1723962078304,0.001025,59719.0,59718.0,0.360652]
[1723962078502,0.001025,59719.0,59718.0,0.47030626]
[1723962078747,0.001025,59719.0,59718.0,0.55230626]
[1723962079031,0.001025,59719.0,59718.0,0.78674126]
[1723962079252,0.001025,59719.0,59718.0,0.91798327]
[1723962079466,0.066825,59719.0,59718.0,0.47030626]
[1723962080092,0.066825,59719.0,59718.0,0.18184194]
[1723962080316,0.066825,59719.0,59718.0,0.06462494]
[1723962080527,0.066825,59719.0,59718.0,0.18184194]
[1723962082710,0.066825,59719.0,59718.0,0.126217]
[1723962082911,0.066825,59719.0,59718.0,0.18184719]
[1723962083144,0.066825,59719.0,59718.0,0.06463019]
[1723962083351,0.07017619,59719.0,59718.0,0.06463019]
[1723962083787,0.418471,59719.0,59718.0,0.06463019]
[1723962083950,0.18404,59719.0,59718.0,0.06463019]
[1723962084217,0.18404,59719.0,59718.0,0.06463385]
[1723962084417,0.18404,59719.0,59718.0,0.06463395]
[1723962084848,0.001025,59719.0,59718.0,1.03125595]
[1723962085058,0.001025,59719.0,59718.0,1.49393704]
[1723962085271,0.001025,59719.0,59718.0,1.76248356]
[1723962085837,0.001025,59719.0,59718.0,1.75848356]
[1723962086037,0.001025,59719.0,59718.0,1.75348356]
[1723962086249,0.001025,59719.0,59718.0,1.75743784]
[1723962086468,0.001025,59719.0,59718.0,1.75743545]
[1723962086710,0.001025,59719.0,59718.0,1.75343545]
[1723962086892,0.001025,59719.0,59718.0,1.76743545]
[1723962087092,0.001025,59719.0,59718.0,1.76743538]
[1723962087293,0.001025,59719.0,59718.0,1.77222735]
[1723962087524,0.001025,59719.0,59718.0,1.78140286]
[1723962087704,0.001025,59719.0,59718.0,1.78140058]
[1723962088827,0.001025,59719.0,59718.0,2.01583558]
[1723962090635,0.001025,59719.0,59718.0,2.01683558]
[1723962090837,0.00825,59722.0,59721.0,1.055903]
[1723962091035,0.00825,59722.0,59721.0,1.99068158]
[1723962091438,0.00825,59722.0,59721.0,1.96768158]
[1723962091864,0.00825,59722.0,59721.0,1.59616925]
[1723962092066,0.00825,59722.0,59721.0,1.96764134]
[1723962092870,0.00825,59722.0,59721.0,1.88564134]
[1723962093075,0.00825,59722.0,59721.0,1.98164134]
[1723962093529,0.00825,59722.0,59721.0,1.99564134]
[1723962094405,0.00825,59722.0,59721.0,1.98646782]
[1723962096022,0.00825,59722.0,59721.0,1.96154023]
[1723962096227,0.00825,59722.0,59721.0,1.90446737]
[1723962096433,0.00825,59722.0,59721.0,1.87954023]
[1723962096656,0.00825,59722.0,59721.0,1.96154023]
[1723962096829,0.00825,59722.0,59721.0,1.96979023]
[1723962098294,0.00825,59722.0,59721.0,2.09450961]
[1723962099637,0.00825,59722.0,59721.0,1.86008661]
[1723962099854,0.00825,59722.0,59721.0,1.85183661]
[1723962100755,0.00825,59722.0,59721.0,1.76983661]
[1723962101126,0.00825,59722.0,59721.0,1.68285364]
[1723962102498,0.00825,59722.0,59721.0,1.27239218]
[1723962102768,0.00825,59722.0,59721.0,0.64604211]
[1723962103015,0.00825,59722.0,59721.0,0.57122062]
[1723962103184,0.00825,59722.0,59721.0,0.62110373]
[1723962103387,0.00825,59722.0,59721.0,0.60710373]
[1723962103815,0.00825,59722.0,59721.0,0.57122062]
[1723962104026,0.00825,59722.0,59721.0,0.55722062]
[1723962104436,0.00825,59722.0,59721.0,0.57122062]
[1723962105343,0.00825,59722.0,59721.0,0.57124909]
[1723962106061,0.00825,59722.0,59721.0,0.461634]
[1723962106268,0.00825,59722.0,59721.0,0.57124818]
[1723962106599,0.00825,59722.0,59721.0,0.62113621]
[1723962106797,0.00825,59722.0,59721.0,0.80567118]
[1723962107041,0.00825,59722.0,59721.0,0.57124818]
[1723962107244,0.00825,59722.0,59721.0,0.51723869]
[1723962107447,0.00825,59722.0,59721.0,0.51724704]
[1723962107650,0.00825,59722.0,59721.0,0.57126465]
[1723962107851,0.00825,59722.0,59721.0,0.51724704]
[1723962108255,0.00825,59722.0,59721.0,0.57126432]
[1723962108827,0.08455,59722.0,59721.0,0.57126432]
[1723962109035,0.14545,59722.0,59721.0,0.77126432]
[1723962109527,0.14545,59722.0,59721.0,0.71724704]
[1723962110151,0.14545,59722.0,59721.0,0.7172483]
[1723962111166,0.14545,59722.0,59721.0,0.77126722]
[1723962111696,0.14545,59722.0,59721.0,0.77126723]
[1723962112100,0.06915,59722.0,59721.0,1.05557826]
[1723962112301,0.00825,59722.0,59721.0,1.05557826]
[1723962112765,0.00825,59722.0,59721.0,0.82966817]
[1723962112974,0.00825,59722.0,59721.0,0.8296492]
[1723962113354,0.00825,59722.0,59721.0,0.82116995]
[1723962113556,0.00825,59722.0,59721.0,0.84607648]
[1723962113791,0.00825,59722.0,59721.0,0.82117044]
[1723962113994,0.00825,59722.0,59721.0,0.87956374]
[1723962114204,0.00825,59722.0,59721.0,0.661634]
[1723962114441,0.00825,59722.0,59721.0,1.35598297]
[1723962114643,0.00825,59722.0,59721.0,1.2975873]
[1723962114891,0.00825,59722.0,59721.0,1.29763597]
[1723962115066,0.00825,59722.0,59721.0,0.85125436]
[1723962115267,0.00825,59722.0,59721.0,0.84612895]
[1723962115497,0.00825,59722.0,59721.0,0.661634]
[1723962115727,0.00825,59722.0,59721.0,0.82965875]
[1723962116282,0.00825,59722.0,59721.0,1.21764775]
[1723962117230,0.00825,59722.0,59721.0,1.21764856]
[1723962118275,0.00825,59722.0,59721.0,1.21769656]
[1723962118631,0.00825,59722.0,59721.0,1.45211956]
[1723962118843,0.00825,59722.0,59721.0,1.37724266]
[1723962119359,0.00825,59722.0,59721.0,1.47707544]
[1723962120327,0.00825,59722.0,59721.0,1.24265244]
[1723962120748,0.00825,59722.0,59721.0,1.47707544]
[1723962121308,0.00825,59722.0,59721.0,1.14285061]
[1723962121461,0.00825,59722.0,59721.0,1.24280958]
[1723962121816,0.00825,59722.0,59721.0,1.47725147]
[1723962123085,0.06965,59722.0,59721.0,1.47725147]
[1723962124023,0.06965,59722.0,59721.0,1.36752875]
[1723962124156,0.06965,59722.0,59721.0,1.47725666]
[1723962124599,0.00825,59722.0,59721.0,1.62075666]
[1723962124795,0.00825,59722.0,59721.0,1.67054551]
[1723962124997,0.00825,59722.0,59721.0,1.5608176]
[1723962125200,0.00825,59722.0,59721.0,1.55492702]
[1723962127222,0.00825,59722.0,59721.0,1.55492847]
[1723962127641,0.00825,59722.0,59721.0,1.41106978]
[1723962127883,0.00825,59722.0,59721.0,1.55492877]
[1723962128506,0.00825,59722.0,59721.0,1.49142877]
[1723962128858,0.00825,59722.0,59721.0,1.48224443]
[1723962129063,0.00825,59722.0,59721.0,1.49142867]
[1723962129265,0.00825,59722.0,59721.0,1.59117702]
[1723962129464,0.00825,59722.0,59721.0,1.49142685]
[1723962131343,0.00825,59722.0,59721.0,1.96010439]
[1723962131589,0.00825,59722.0,59721.0,2.4801748]
[1723962131817,0.00825,59729.0,59728.0,0.820382]
[1723962132077,0.00825,59729.0,59728.0,1.76340322]
[1723962133025,0.00825,59729.0,59728.0,1.82610322]
[1723962133258,0.00825,59729.0,59728.0,1.88454053]
[1723962133515,0.00825,59729.0,59728.0,1.88452692]
[1723962133993,0.00825,59729.0,59728.0,1.88452722]
[1723962134199,0.00825,59729.0,59728.0,1.82182722]
[1723962134900,0.00825,59729.0,59728.0,1.83182722]
[1723962135139,0.00825,59729.0,59728.0,1.6536865]
[1723962135393,0.00825,59729.0,59728.0,1.83582186]
[1723962135623,0.00825,59729.0,59728.0,1.77738622]
[1723962135863,0.00825,59729.0,59728.0,1.79038622]
[1723962136325,0.00825,59729.0,59728.0,1.79035651]
[1723962137500,0.00825,59729.0,59728.0,1.84879215]
[1723962138010,0.00825,59729.0,59728.0,1.84877506]
[1723962139954,0.00825,59729.0,59728.0,1.68357506]
[1723962140176,0.00825,59729.0,59728.0,1.76557506]
[1723962141186,0.00825,59729.0,59728.0,1.76555582]
[1723962142136,0.00825,59729.0,59728.0,1.74476567]
[1723962142401,0.00825,59729.0,59728.0,1.70712289]
[1723962145473,0.00825,59729.0,59728.0,1.70706415]
[1723962146547,0.00825,59729.0,59728.0,1.70706583]
[1723962146812,0.00825,59729.0,59728.0,1.70706624]
[1723962147023,0.00825,59729.0,59728.0,1.70706604]
[1723962147231,0.00825,59729.0,59728.0,1.58203818]
[1723962148040,0.00825,59729.0,59728.0,1.5820387]
[1723962148243,0.00825,59729.0,59728.0,1.47240394]
[1723962148480,0.00825,59729.0,59728.0,1.58203871]
[1723962149681,0.00825,59729.0,59728.0,1.64043971]
[1723962149887,0.00825,59729.0,59728.0,1.58203871]
[1723962151137,0.00825,59729.0,59728.0,1.72293871]
[1723962151921,0.00825,59729.0,59728.0,1.72294572]
[1723962152120,0.00825,59729.0,59728.0,1.56804572]
[1723962152368,0.00825,59729.0,59728.0,1.58204572]
[1723962153356,0.00825,59729.0,59728.0,1.62745043]
[1723962153723,0.00825,59729.0,59728.0,1.64145043]
[1723962154315,0.00825,59729.0,59728.0,1.23550089]
[1723962154532,0.08705,59729.0,59728.0,0.80826958]
[1723962155300,0.08705,59729.0,59728.0,0.63350714]
[1723962155504,0.08705,59729.0,59728.0,1.00111015]
[1723962157276,0.00825,59729.0,59728.0,1.00111015]
[1723962157624,0.00825,59729.0,59728.0,1.0011102]
[1723962159162,0.00825,59729.0,59728.0,1.2355052]
[1723962159988,0.00825,59729.0,59728.0,1.0011102]
[1723962160341,0.00825,59729.0,59728.0,1.12614394]
[1723962160549,0.00825,59729.0,59728.0,1.36053894]
[1723962161452,0.00825,59729.0,59728.0,1.30213265]
[1723962162200,0.00825,59729.0,59728.0,1.32707252]
[1723962162802,0.00825,59729.0,59728.0,1.40766938]
[1723962163004,0.00825,59729.0,59728.0,1.32706938]
[1723962163444,0.00825,59729.0,59728.0,1.20203577]
[1723962165061,0.00825,59729.0,59728.0,1.32704916]
[1723962165280,0.00825,59729.0,59728.0,1.30210967]
[1723962166062,0.00825,59729.0,59728.0,1.36052629]
[1723962166658,0.00825,59729.0,59728.0,1.36056414]
[1723962167304,0.00825,59729.0,59728.0,1.20208376]
[1723962167442,0.00825,59729.0,59728.0,1.36063326]
[1723962167637,0.00825,59729.0,59728.0,1.20208482]
[1723962168690,0.00825,59729.0,59728.0,1.20208488]
[1723962170307,0.14735,59729.0,59728.0,0.69264164]
[1723962170654,0.14735,59729.0,59728.0,0.5091493]
[1723962170850,0.14735,59729.0,59728.0,0.53017504]
[1723962171048,0.264546,59729.0,59728.0,0.53017504]
[1723962171690,0.264546,59729.0,59728.0,0.15870758]
[1723962171803,0.264546,59729.0,59728.0,0.53020617]
[1723962172407,0.264546,59729.0,59728.0,0.15870758]
[1723962172601,0.264546,59729.0,59728.0,0.10306851]
[1723962172849,0.73668119,59729.0,59728.0,0.133697]
[1723962173255,0.73668119,59729.0,59728.0,0.08364711]
[1723962173458,0.73333,59729.0,59728.0,0.08364711]
[1723962173654,0.73333,59729.0,59728.0,0.06964711]
[1723962173859,0.117197,59728.0,59727.0,0.05005108]
[1723962174057,0.117197,59728.0,59727.0,0.10570232]
[1723962174886,0.178697,59728.0,59727.0,0.10570232]
[1723962175859,0.178697,59728.0,59727.0,0.11570232]
[1723962176446,0.178697,59728.0,59727.0,0.07565124]
[1723962177273,0.413092,59728.0,59727.0,0.07565124]
[1723962179888,0.490692,59728.0,59727.0,0.07565124]
[1723962180320,0.0776,59728.0,59727.0,0.04078898]
[1723962180545,0.194797,59728.0,59727.0,0.04078898]
[1723962180766,0.194797,59728.0,59727.0,0.04079325]
[1723962181702,0.194797,59728.0,59727.0,0.05659318]
[1723962183030,0.194797,59728.0,59727.0,0.03579993]
[1723962183232,0.194797,59728.0,59727.0,0.0565939]
[1723962183453,0.256297,59728.0,59727.0,0.0565939]
[1723962183686,0.256297,59728.0,59727.0,0.05659392]
[1723962183886,0.256297,59728.0,59727.0,0.03579993]
[1723962184097,0.256297,59728.0,59727.0,0.05659431]
[1723962185142,0.256297,59728.0,59727.0,0.04079448]
[1723962186023,0.490692,59728.0,59727.0,0.04079448]
[1723962187033,0.00825,59729.0,59728.0,0.0636]
[1723962187236,0.00825,59729.0,59728.0,0.15999448]
[1723962187441,0.00825,59729.0,59728.0,0.53986538]
[1723962187845,0.00825,59729.0,59728.0,0.51158075]
[1723962188973,0.00825,59729.0,59728.0,0.52958075]
[1723962189175,0.00825,59729.0,59728.0,0.56444153]
[1723962189864,0.00825,59729.0,59728.0,0.55544153]
[1723962190018,0.00825,59729.0,59728.0,0.79983653]
[1723962191049,0.00825,59729.0,59728.0,0.79083653]
[1723962191225,0.00825,59729.0,59728.0,0.80083653]
[1723962191621,0.00825,59729.0,59728.0,0.78083653]
[1723962192029,0.00825,59729.0,59728.0,0.66463653]
[1723962194284,0.00825,59729.0,59728.0,0.65263653]
[1723962194483,0.00825,59729.0,59728.0,0.66463653]
[1723962194828,0.00825,59729.0,59728.0,0.65363653]
[1723962195044,0.00825,59729.0,59728.0,0.66463653]
[1723962195204,0.14535,59729.0,59728.0,0.19584653]
[1723962196118,0.14535,59729.0,59728.0,0.43024153]
[1723962196320,0.14535,59729.0,59728.0,0.07864953]
[1723962196549,0.14535,59729.0,59728.0,0.04378875]
[1723962196750,0.14535,59729.0,59728.0,0.04379383]
[1723962199753,0.262546,59729.0,59728.0,0.04379383]
[1723962200935,0.496938,59729.0,59728.0,0.04379383]
[1723962202560,0.234392,59729.0,59728.0,0.04379383]
[1723962202763,0.117196,59729.0,59728.0,0.04379394]
[1723962203500,0.351588,59729.0,59728.0,0.04379394]
[1723962204848,0.117196,59729.0,59728.0,0.04379394]
[1723962205056,0.117196,59729.0,59728.0,0.0437921]
[1723962205490,0.193896,59729.0,59728.0,0.0437921]
[1723962206453,0.194721,59729.0,59728.0,0.0437921]
[1723962209560,0.194721,59729.0,59728.0,0.023]
[1723962209845,0.194721,59729.0,59728.0,0.04379487]
[1723962210048,0.194721,59729.0,59728.0,0.04379515]
[1723962211466,0.429113,59729.0,59728.0,0.04379515]
[1723962212387,0.429113,59729.0,59728.0,0.03279522]
[1723962212597,0.663505,59729.0,59728.0,0.02079522]